[Event "FIDE Open World Rapid 2024"]
[Site "New York"]
[Date "2024.12.27"]
[Round "9.20"]
[White "Liang, Awonder"]
[Black "Dubov, Daniil"]
[Result "0-1"]
[ECO "C85"]
[WhiteElo "2687"]
[BlackElo "2693"]
[Annotator "ChessBase"]
[PlyCount "58"]
[EventDate "2024.12.14"]
[EventType "swiss"]
[EventCountry "USA"]
[SourceTitle "playchess.com"]
[Source "ChessBase"]
[SourceQuality "1"]
[TimeControl "900+10"]

1. e4 {[%emt 0:00:01]} e5 {[%emt 0:00:01]} 2. Nf3 {[%emt 0:00:02]} Nc6 {[%emt 0:00:01]} 3. Bb5 {[%emt 0:00:01]} a6 {[%emt 0:00:01]} 4. Ba4 {[%emt 0:00:01]} Nf6 {[%emt 0:00:02]} 5. O-O {[%emt 0:00:05]} Be7 {[%emt 0:00:01]} 6. Bxc6 {[%emt 0:00:03]} dxc6 {[%emt 0:00:01]} 7. d3 {[%emt 0:00:01]} Qd6 {[%emt 0:00:04]} 8. Be3 {[%emt 0:01:09]} Be6 {[%emt 0:00:14]} 9. Nc3 {[%emt 0:00:57]} Ng4 {[%emt 0:00:25]} 10. Bd2 {[%emt 0:00:22]} O-O-O {[%emt 0:00:13]} 11. Rb1 {[%emt 0:00:41]} c5 {[%emt 0:00:22]} 12. Qe2 {[%emt 0:00:39]} Nf6 {[%emt 0:00:17]} 13. Ng5 {[%emt 0:00:24]} c4 {[%emt 0:00:10]} 14. Nxe6 {[%emt 0:00:41]} cxd3 {[%emt 0:00:05]} 15. cxd3 {[%emt 0:00:12]} fxe6 {[%emt 0:00:03]} 16. Be3 {[%emt 0:00:12]} Qxd3 {[%emt 0:00:07]} 17. Qf3 {[%emt 0:00:01]} Bb4 {[%emt 0:00:15]} 18. Qh3 {[%emt 0:01:36]} Bxc3 {[%emt 0:00:13]} 19. Qxe6+ {[%emt 0:00:41]} Qd7 {[%emt 0:00:05]} 20. Qxd7+ {[%emt 0:00:01]} Rxd7 {[%emt 0:00:01]} 21. bxc3 {[%emt 0:00:02]} Nxe4 {[%emt 0:00:04]} 22. Rfc1 {[%emt 0:00:01]} Rd3 {[%emt 0:00:32]} 23. Rb3 {[%emt 0:00:24]} Rhd8 {[%emt 0:00:10]} 24. Kf1 {[%emt 0:00:02]} Nd2+ {[%emt 0:01:46]} 25. Bxd2 {[%emt 0:00:26]} Rxd2 {[%emt 0:00:01]} 26. Rcb1 {[%emt 0:00:06]} b6 {[%emt 0:00:46]} 27. R3b2 {[%emt 0:00:05]} R8d3 {[%emt 0:00:06]} 28. c4 {[%emt 0:00:35]} Rxb2 {[%emt 0:00:05]} 29. Rxb2 {[%emt 0:00:01]} Rc3 {[%emt 0:00:02]} 0-1

[Event "FIDE Open World Rapid 2024"]
[Site "New York"]
[Date "2024.12.28"]
[Round "9.20"]
[White "Lou, Yiping"]
[Black "Smirnov, Mark"]
[Result "1/2-1/2"]
[ECO "C70"]
[WhiteElo "2459"]
[BlackElo "2336"]
[Annotator "ChessBase"]
[PlyCount "134"]
[EventDate "2024.12.14"]
[EventType "swiss"]
[EventCountry "USA"]
[SourceTitle "playchess.com"]
[Source "ChessBase"]
[SourceQuality "1"]
[TimeControl "900+10"]

1. e4 {[%emt 0:00:02]} e5 {[%emt 0:00:01]} 2. Nf3 {[%emt 0:00:02]} Nc6 {[%emt 0:00:02]} 3. Bb5 {[%emt 0:00:05]} g6 {[%emt 0:00:02]} 4. c3 {[%emt 0:00:09]} a6 {[%emt 0:00:14]} 5. Ba4 {[%emt 0:00:03]} Bg7 {[%emt 0:00:09]} 6. d4 {[%emt 0:00:06]} exd4 {[%emt 0:00:13]} 7. cxd4 {[%emt 0:00:02]} b5 {[%emt 0:00:01]} 8. Bb3 {[%emt 0:00:07]} Nge7 {[%emt 0:00:06]} 9. O-O {[%emt 0:00:13]} O-O {[%emt 0:00:14]} 10. d5 {[%emt 0:00:05]} Na5 {[%emt 0:00:03]} 11. Bd2 {[%emt 0:00:03]} Nxb3 {[%emt 0:00:04]} 12. Qxb3 {[%emt 0:00:02]} c5 {[%emt 0:00:06]} 13. Bc3 {[%emt 0:00:07]} Bxc3 {[%emt 0:00:04]} 14. Qxc3 {[%emt 0:00:15]} d6 {[%emt 0:01:31]} 15. Nbd2 {[%emt 0:00:22]} f5 {[%emt 0:00:55]} 16. Rad1 {[%emt 0:00:56]} Bb7 {[%emt 0:01:28]} 17. Qe3 {[%emt 0:04:30]} fxe4 {[%emt 0:01:37]} 18. Nxe4 {[%emt 0:00:06]} Nxd5 {[%emt 0:00:53]} 19. Qh6 {[%emt 0:00:13]} Nf6 {[%emt 0:08:45]} 20. Nxc5 {[%emt 0:03:03]} Bxf3 {[%emt 0:00:17]} 21. gxf3 {[%emt 0:00:02]} Qc8 {[%emt 0:01:01]} 22. Nb3 {[%emt 0:00:50]} d5 {[%emt 0:00:50]} 23. Rfe1 {[%emt 0:00:23]} Ra7 {[%emt 0:00:03]} 24. Nd4 {[%emt 0:00:10]} Re8 {[%emt 0:00:20]} 25. Qf4 {[%emt 0:00:57]} Rf7 {[%emt 0:00:10]} 26. Qd6 {[%emt 0:00:09]} Rd8 {[%emt 0:00:10]} 27. Qb6 {[%emt 0:00:28]} Rdf8 {[%emt 0:00:10]} 28. Ne6 {[%emt 0:00:27]} Re8 {[%emt 0:00:01]} 29. Ng5 {[%emt 0:00:53]} Rff8 {[%emt 0:00:03]} 30. Rxe8 {[%emt 0:00:14]} Qxe8 {[%emt 0:00:14]} 31. Qxa6 {[%emt 0:00:16]} Qe5 {[%emt 0:00:17]} 32. Qe6+ {[%emt 0:00:26]} Qxe6 {[%emt 0:00:01]} 33. Nxe6 {[%emt 0:00:01]} Rc8 {[%emt 0:00:24]} 34. Nf4 {[%emt 0:01:33]} Rc2 {[%emt 0:00:10]} 35. b3 {[%emt 0:00:01]} Rxa2 {[%emt 0:00:10]} 36. Nxd5 {[%emt 0:00:02]} Nh5 {[%emt 0:00:10]} 37. Rd4 {[%emt 0:00:16]} Kf7 {[%emt 0:00:10]} 38. h4 {[%emt 0:01:16]} Ke6 {[%emt 0:00:10]} 39. Nc7+ {[%emt 0:00:15]} Kf5 {[%emt 0:00:01]} 40. Nxb5 {[%emt 0:00:19]} Ra1+ {[%emt 0:00:13]} 41. Kh2 {[%emt 0:00:11]} Ra2 {[%emt 0:00:01]} 42. Nd6+ {[%emt 0:00:49]} Ke5 {[%emt 0:00:17]} 43. Rd2 {[%emt 0:00:05]} Rxd2 {[%emt 0:00:17]} 44. Nc4+ {[%emt 0:00:01]} Kd4 {[%emt 0:00:05]} 45. Nxd2 {[%emt 0:00:01]} Kc3 {[%emt 0:00:01]} 46. Ne4+ {[%emt 0:00:03]} Kxb3 {[%emt 0:00:11]} 47. Ng5 {[%emt 0:00:04]} Nf6 {[%emt 0:00:24]} 48. Kg3 {[%emt 0:00:05]} Kc4 {[%emt 0:00:03]} 49. Kf4 {[%emt 0:00:14]} Kd5 {[%emt 0:00:14]} 50. Ne4 {[%emt 0:00:07]} Ng8 {[%emt 0:00:13]} 51. Kg5 {[%emt 0:00:07]} Ke6 {[%emt 0:00:04]} 52. f4 {[%emt 0:00:17]} Kf7 {[%emt 0:00:15]} 53. f5 {[%emt 0:00:12]} h6+ {[%emt 0:00:11]} 54. Kf4 {[%emt 0:00:06]} Ne7 {[%emt 0:00:10]} 55. fxg6+ {[%emt 0:00:25]} Kxg6 {[%emt 0:00:09]} 56. Ng3 {[%emt 0:00:24]} Kf6 {[%emt 0:00:09]} 57. Kg4 {[%emt 0:00:15]} Nd5 {[%emt 0:00:12]} 58. Nh5+ {[%emt 0:00:16]} Ke5 {[%emt 0:00:09]} 59. f4+ {[%emt 0:00:22]} Ke6 {[%emt 0:00:05]} 60. Kf3 {[%emt 0:00:15]} Ne7 {[%emt 0:00:16]} 61. Ng3 {[%emt 0:00:20]} Ng8 {[%emt 0:00:06]} 62. Ne2 {[%emt 0:00:22]} Ne7 {[%emt 0:00:14]} 63. Ke4 {[%emt 0:00:22]} Kf6 {[%emt 0:00:10]} 64. Nd4 {[%emt 0:00:25]} Ng6 {[%emt 0:00:10]} 65. h5 {[%emt 0:00:24]} Ne7 {[%emt 0:00:07]} 66. Nf3 {[%emt 0:00:05]} Nf5 {[%emt 0:00:03]} 67. Ne5 {[%emt 0:00:05]} Ng3+ {[%emt 0:00:02]} 1/2-1/2

[Event "FIDE Open World Rapid 2024"]
[Site "New York"]
[Date "2024.12.27"]
[Round "9.21"]
[White "Bortnyk, Olexandr"]
[Black "Theodorou, Nikolas"]
[Result "1/2-1/2"]
[ECO "B24"]
[WhiteElo "2603"]
[BlackElo "2600"]
[Annotator "ChessBase"]
[PlyCount "59"]
[EventDate "2024.12.14"]
[EventType "swiss"]
[EventCountry "USA"]
[SourceTitle "playchess.com"]
[Source "ChessBase"]
[SourceQuality "1"]
[TimeControl "900+10"]

1. e4 {[%emt 0:00:02]} c5 {[%emt 0:00:03]} 2. Nf3 {[%emt 0:00:11]} Nc6 {[%emt 0:00:03]} 3. Nc3 {[%emt 0:00:34]} g6 {[%emt 0:00:38]} 4. g3 {[%emt 0:00:03]} Bg7 {[%emt 0:00:05]} 5. Bg2 {[%emt 0:00:02]} Rb8 {[%emt 0:00:28]} 6. a4 {[%emt 0:00:23]} a6 {[%emt 0:00:02]} 7. O-O {[%emt 0:00:14]} b5 {[%emt 0:00:21]} 8. axb5 {[%emt 0:00:07]} axb5 {[%emt 0:00:02]} 9. e5 {[%emt 0:00:35]} Nxe5 {[%emt 0:00:58]} 10. Nxe5 {[%emt 0:00:15]} Bxe5 {[%emt 0:00:03]} 11. Qe2 {[%emt 0:00:49]} Bxc3 {[%emt 0:02:04]} 12. dxc3 {[%emt 0:00:11]} d6 {[%emt 0:00:30]} 13. b4 {[%emt 0:01:17]} c4 {[%emt 0:01:47]} 14. Be3 {[%emt 0:02:20]} Kf8 {[%emt 0:00:06]} 15. Ba7 {[%emt 0:00:18]} Rb7 {[%emt 0:00:02]} 16. Bxb7 {[%emt 0:01:04]} Bxb7 {[%emt 0:00:02]} 17. Bd4 {[%emt 0:00:06]} e5 {[%emt 0:00:07]} 18. Ra7 {[%emt 0:00:20]} Qc7 {[%emt 0:01:20]} 19. Be3 {[%emt 0:01:03]} Qc6 {[%emt 0:00:10]} 20. Rxb7 {[%emt 0:00:35]} Qxb7 {[%emt 0:00:02]} 21. Rd1 {[%emt 0:00:01]} Kg7 {[%emt 0:02:43]} 22. Rxd6 {[%emt 0:00:12]} Nf6 {[%emt 0:00:03]} 23. Rb6 {[%emt 0:04:47]} Qd5 {[%emt 0:01:02]} 24. Qd2 {[%emt 0:00:59]} Qxd2 {[%emt 0:00:22]} 25. Bxd2 {[%emt 0:00:01]} Rd8 {[%emt 0:00:01]} 26. Be3 {[%emt 0:00:12]} Rd1+ {[%emt 0:01:49]} 27. Kg2 {[%emt 0:00:01]} Nd5 {[%emt 0:00:02]} 28. Rxb5 {[%emt 0:00:10]} Nxe3+ {[%emt 0:00:02]} 29. fxe3 {[%emt 0:00:02]} Rd2+ {[%emt 0:00:03]} 30. Kf3 {[%emt 0:00:36]} 1/2-1/2

[Event "FIDE Open World Rapid 2024"]
[Site "New York"]
[Date "2024.12.28"]
[Round "9.21"]
[White "Kevlishvili, Robby"]
[Black "Rasulov, Vugar"]
[Result "1/2-1/2"]
[ECO "C88"]
[WhiteElo "2556"]
[BlackElo "2504"]
[Annotator "ChessBase"]
[PlyCount "117"]
[EventDate "2024.12.14"]
[EventType "swiss"]
[EventCountry "USA"]
[SourceTitle "playchess.com"]
[Source "ChessBase"]
[SourceQuality "1"]
[TimeControl "900+10"]

1. e4 {[%emt 0:00:03]} e5 {[%emt 0:00:03]} 2. Nf3 {[%emt 0:00:02]} Nc6 {[%emt 0:00:02]} 3. Bb5 {[%emt 0:00:02]} a6 {[%emt 0:00:07]} 4. Ba4 {[%emt 0:00:02]} Nf6 {[%emt 0:00:03]} 5. O-O {[%emt 0:00:03]} b5 {[%emt 0:00:03]} 6. Bb3 {[%emt 0:00:03]} Bb7 {[%emt 0:00:02]} 7. d3 {[%emt 0:00:08]} Be7 {[%emt 0:00:08]} 8. a4 {[%emt 0:00:39]} O-O {[%emt 0:00:23]} 9. Re1 {[%emt 0:00:41]} d6 {[%emt 0:00:51]} 10. Bd2 {[%emt 0:00:22]} Qd7 {[%emt 0:00:08]} 11. Nc3 {[%emt 0:00:18]} Nd8 {[%emt 0:00:06]} 12. Ne2 {[%emt 0:00:17]} Ne6 {[%emt 0:00:03]} 13. c3 {[%emt 0:00:21]} Nc5 {[%emt 0:00:45]} 14. Bc2 {[%emt 0:00:01]} Nxa4 {[%emt 0:00:03]} 15. Bxa4 {[%emt 0:00:05]} bxa4 {[%emt 0:00:01]} 16. Rxa4 {[%emt 0:00:16]} Rfb8 {[%emt 0:00:16]} 17. c4 {[%emt 0:00:10]} c6 {[%emt 0:01:16]} 18. Qc2 {[%emt 0:00:09]} Ne8 {[%emt 0:00:32]} 19. c5 {[%emt 0:00:22]} Nc7 {[%emt 0:00:21]} 20. Bc3 {[%emt 0:00:19]} Re8 {[%emt 0:00:14]} 21. h3 {[%emt 0:00:49]} Nb5 {[%emt 0:00:05]} 22. Ng3 {[%emt 0:00:31]} f6 {[%emt 0:00:42]} 23. cxd6 {[%emt 0:00:09]} Bxd6 {[%emt 0:00:02]} 24. Nf5 {[%emt 0:00:09]} c5 {[%emt 0:00:10]} 25. Bd2 {[%emt 0:00:23]} Bf8 {[%emt 0:00:25]} 26. Nh2 {[%emt 0:00:44]} Rad8 {[%emt 0:00:18]} 27. Re3 {[%emt 0:00:21]} g6 {[%emt 0:01:14]} 28. Ng4 {[%emt 0:00:16]} Qe6 {[%emt 0:00:49]} 29. Rg3 {[%emt 0:00:35]} Kh8 {[%emt 0:00:04]} 30. Nfh6 {[%emt 0:01:26]} Nd4 {[%emt 0:00:10]} 31. Qd1 {[%emt 0:00:07]} Bg7 {[%emt 0:00:09]} 32. Nh2 {[%emt 0:02:39]} Rd7 {[%emt 0:00:26]} 33. Ra3 {[%emt 0:00:52]} c4 {[%emt 0:00:17]} 34. Nf3 {[%emt 0:00:48]} Nb5 {[%emt 0:00:14]} 35. Nh4 {[%emt 0:01:35]} Bxh6 {[%emt 0:02:40]} 36. Bxh6 {[%emt 0:00:24]} Bxe4 {[%emt 0:00:11]} 37. Ra4 {[%emt 0:00:18]} Bxd3 {[%emt 0:00:25]} 38. Qa1 {[%emt 0:01:04]} Bc2 {[%emt 0:01:14]} 39. Rxa6 {[%emt 0:00:05]} Rd1+ {[%emt 0:00:15]} 40. Qxd1 {[%emt 0:00:02]} Bxd1 {[%emt 0:00:02]} 41. Rxe6 {[%emt 0:00:06]} Rxe6 {[%emt 0:00:01]} 42. Re3 {[%emt 0:00:08]} Kg8 {[%emt 0:00:22]} 43. Re1 {[%emt 0:00:06]} Bc2 {[%emt 0:00:20]} 44. f4 {[%emt 0:00:21]} Kf7 {[%emt 0:00:18]} 45. fxe5 {[%emt 0:00:06]} Rxe5 {[%emt 0:00:04]} 46. Rxe5 {[%emt 0:00:07]} fxe5 {[%emt 0:00:02]} 47. Nf3 {[%emt 0:00:15]} Ke6 {[%emt 0:00:45]} 48. Bg7 {[%emt 0:00:09]} e4 {[%emt 0:02:46]} 49. Nd4+ {[%emt 0:00:01]} Nxd4 {[%emt 0:00:01]} 50. Bxd4 {[%emt 0:00:02]} Kd5 {[%emt 0:00:01]} 51. Be3 {[%emt 0:00:09]} Kc6 {[%emt 0:00:02]} 52. Kf2 {[%emt 0:00:03]} Kb5 {[%emt 0:00:01]} 53. Bd4 {[%emt 0:00:06]} Kb4 {[%emt 0:00:04]} 54. Ke3 {[%emt 0:00:07]} Bd3 {[%emt 0:00:02]} 55. h4 {[%emt 0:00:02]} Kb3 {[%emt 0:00:02]} 56. g3 {[%emt 0:00:04]} Kc2 {[%emt 0:00:02]} 57. Be5 {[%emt 0:00:04]} Kd1 {[%emt 0:00:05]} 58. Bd4 {[%emt 0:00:03]} Ke1 {[%emt 0:00:02]} 59. Be5 {[%emt 0:00:02]} 1/2-1/2

[Event "FIDE Open World Rapid 2024"]
[Site "New York"]
[Date "2024.12.28"]
[Round "9.22"]
[White "Dudin, Gleb"]
[Black "Bologan, Victor"]
[Result "1-0"]
[ECO "C41"]
[WhiteElo "2506"]
[BlackElo "2600"]
[Annotator "ChessBase"]
[PlyCount "59"]
[EventDate "2024.12.14"]
[EventType "swiss"]
[EventCountry "USA"]
[SourceTitle "playchess.com"]
[Source "ChessBase"]
[SourceQuality "1"]
[TimeControl "900+10"]

1. d4 {[%emt 0:00:53]} d6 {[%emt 0:00:01]} 2. e4 {[%emt 0:00:08]} Nf6 {[%emt 0:00:01]} 3. Nc3 {[%emt 0:00:06]} e5 {[%emt 0:00:01]} 4. Nf3 {[%emt 0:00:08]} Nbd7 {[%emt 0:00:01]} 5. Rg1 {[%emt 0:00:06]} c6 {[%emt 0:00:03]} 6. g4 {[%emt 0:00:12]} h6 {[%emt 0:00:01]} 7. a4 {[%emt 0:00:32]} Be7 {[%emt 0:00:43]} 8. Qe2 {[%emt 0:01:01]} exd4 {[%emt 0:01:19]} 9. Nxd4 {[%emt 0:00:03]} Ne5 {[%emt 0:00:01]} 10. h3 {[%emt 0:00:26]} g5 {[%emt 0:02:01]} 11. f4 {[%emt 0:02:07]} gxf4 {[%emt 0:01:16]} 12. Bxf4 {[%emt 0:00:02]} Qb6 {[%emt 0:00:51]} 13. O-O-O {[%emt 0:00:47]} Be6 {[%emt 0:00:13]} 14. Nxe6 {[%emt 0:01:06]} fxe6 {[%emt 0:00:03]} 15. Be3 {[%emt 0:00:28]} Qa5 {[%emt 0:00:10]} 16. Kb1 {[%emt 0:00:24]} a6 {[%emt 0:00:11]} 17. h4 {[%emt 0:01:13]} b5 {[%emt 0:00:12]} 18. g5 {[%emt 0:00:23]} hxg5 {[%emt 0:00:02]} 19. hxg5 {[%emt 0:00:02]} Nfd7 {[%emt 0:00:54]} 20. g6 {[%emt 0:00:26]} bxa4 {[%emt 0:00:41]} 21. g7 {[%emt 0:01:30]} Rg8 {[%emt 0:00:01]} 22. Bd2 {[%emt 0:01:15]} Qb6 {[%emt 0:01:22]} 23. Be3 {[%emt 0:00:49]} Qa5 {[%emt 0:00:21]} 24. Bh3 {[%emt 0:00:04]} Rb8 {[%emt 0:00:19]} 25. Bxe6 {[%emt 0:00:41]} Qxc3 {[%emt 0:00:17]} 26. Bd4 {[%emt 0:00:09]} Rxb2+ {[%emt 0:02:34]} 27. Kc1 {[%emt 0:00:02]} Rxc2+ {[%emt 0:00:23]} 28. Qxc2 {[%emt 0:00:09]} Qa3+ {[%emt 0:00:07]} 29. Bb2 {[%emt 0:00:39]} Qe3+ {[%emt 0:00:05]} 30. Kb1 {[%emt 0:00:01]} 1-0

[Event "FIDE Open World Rapid 2024"]
[Site "New York"]
[Date "2024.12.27"]
[Round "9.22"]
[White "Isanzhulov, Arystan"]
[Black "Anton Guijarro, David"]
[Result "1/2-1/2"]
[ECO "B11"]
[WhiteElo "2395"]
[BlackElo "2673"]
[Annotator "ChessBase"]
[PlyCount "73"]
[EventDate "2024.12.14"]
[EventType "swiss"]
[EventCountry "USA"]
[SourceTitle "playchess.com"]
[Source "ChessBase"]
[SourceQuality "1"]
[TimeControl "900+10"]

1. e4 {[%emt 0:00:02]} c6 {[%emt 0:00:01]} 2. Nf3 {[%emt 0:00:02]} d5 {[%emt 0:00:02]} 3. Nc3 {[%emt 0:00:01]} Bg4 {[%emt 0:00:03]} 4. h3 {[%emt 0:00:02]} Bxf3 {[%emt 0:00:03]} 5. Qxf3 {[%emt 0:00:02]} e6 {[%emt 0:00:02]} 6. g3 {[%emt 0:00:13]} h5 {[%emt 0:00:20]} 7. d4 {[%emt 0:01:59]} Bb4 {[%emt 0:01:13]} 8. e5 {[%emt 0:00:49]} c5 {[%emt 0:00:24]} 9. a3 {[%emt 0:00:05]} Qa5 {[%emt 0:01:19]} 10. axb4 {[%emt 0:04:15]} Qxa1 {[%emt 0:00:08]} 11. Bb5+ {[%emt 0:00:09]} Nc6 {[%emt 0:01:24]} 12. O-O {[%emt 0:00:58]} cxd4 {[%emt 0:00:23]} 13. Nxd5 {[%emt 0:06:36]} exd5 {[%emt 0:00:59]} 14. Qb3 {[%emt 0:00:28]} Nge7 {[%emt 0:02:29]} 15. Bg5 {[%emt 0:00:28]} Qxf1+ {[%emt 0:00:10]} 16. Bxf1 {[%emt 0:00:02]} a6 {[%emt 0:01:45]} 17. b5 {[%emt 0:00:24]} axb5 {[%emt 0:00:10]} 18. Bxe7 {[%emt 0:00:08]} Kxe7 {[%emt 0:01:41]} 19. Qxd5 {[%emt 0:00:24]} Rhd8 {[%emt 0:00:54]} 20. Qc5+ {[%emt 0:00:13]} Ke8 {[%emt 0:00:31]} 21. Bxb5 {[%emt 0:00:02]} Rac8 {[%emt 0:00:02]} 22. b4 {[%emt 0:00:26]} Rd7 {[%emt 0:00:31]} 23. f4 {[%emt 0:00:11]} g6 {[%emt 0:00:20]} 24. Kg2 {[%emt 0:00:13]} Kd8 {[%emt 0:00:23]} 25. Ba4 {[%emt 0:00:02]} d3 {[%emt 0:00:38]} 26. cxd3 {[%emt 0:00:33]} Rxd3 {[%emt 0:00:05]} 27. Qb6+ {[%emt 0:00:31]} Rc7 {[%emt 0:00:37]} 28. g4 {[%emt 0:00:11]} Kc8 {[%emt 0:00:27]} 29. gxh5 {[%emt 0:00:05]} gxh5 {[%emt 0:00:02]} 30. h4 {[%emt 0:00:24]} Nd4 {[%emt 0:00:21]} 31. Kf2 {[%emt 0:00:09]} Rcc3 {[%emt 0:00:28]} 32. Bd7+ {[%emt 0:00:06]} Kxd7 {[%emt 0:00:08]} 33. Qd6+ {[%emt 0:00:03]} Kc8 {[%emt 0:00:49]} 34. Qf8+ {[%emt 0:00:02]} Kc7 {[%emt 0:00:04]} 35. Qd6+ {[%emt 0:00:01]} Kc8 {[%emt 0:00:01]} 36. Qf8+ {[%emt 0:00:01]} Kc7 {[%emt 0:00:08]} 37. Qd6+ {[%emt 0:00:02]} 1/2-1/2

[Event "FIDE Open World Rapid 2024"]
[Site "New York"]
[Date "2024.12.27"]
[Round "9.23"]
[White "Bjerre, Jonas Buhl"]
[Black "Grigoryan, Karen H."]
[Result "1/2-1/2"]
[ECO "C84"]
[WhiteElo "2642"]
[BlackElo "2618"]
[Annotator "ChessBase"]
[PlyCount "97"]
[EventDate "2024.12.14"]
[EventType "swiss"]
[EventCountry "USA"]
[SourceTitle "playchess.com"]
[Source "ChessBase"]
[SourceQuality "1"]
[TimeControl "900+10"]

1. e4 {[%emt 0:00:01]} e5 {[%emt 0:00:01]} 2. Nf3 {[%emt 0:00:01]} Nc6 {[%emt 0:00:02]} 3. Bb5 {[%emt 0:00:02]} a6 {[%emt 0:00:03]} 4. Ba4 {[%emt 0:00:00]} Nf6 {[%emt 0:00:02]} 5. d3 {[%emt 0:00:02]} d6 {[%emt 0:00:08]} 6. c3 {[%emt 0:00:17]} Be7 {[%emt 0:00:21]} 7. O-O {[%emt 0:00:04]} O-O {[%emt 0:00:35]} 8. Re1 {[%emt 0:00:02]} b5 {[%emt 0:00:06]} 9. Bc2 {[%emt 0:00:05]} Bb7 {[%emt 0:00:09]} 10. Nbd2 {[%emt 0:00:32]} Re8 {[%emt 0:00:04]} 11. Nf1 {[%emt 0:00:09]} Bf8 {[%emt 0:00:02]} 12. Bg5 {[%emt 0:00:13]} h6 {[%emt 0:00:02]} 13. Bh4 {[%emt 0:00:01]} g6 {[%emt 0:00:47]} 14. a4 {[%emt 0:00:20]} Bg7 {[%emt 0:00:12]} 15. Ne3 {[%emt 0:00:12]} Ne7 {[%emt 0:00:21]} 16. h3 {[%emt 0:00:55]} Qd7 {[%emt 0:00:51]} 17. b4 {[%emt 0:01:50]} Nh5 {[%emt 0:01:05]} 18. Bb3 {[%emt 0:00:54]} Nf4 {[%emt 0:00:23]} 19. Qc2 {[%emt 0:00:57]} c5 {[%emt 0:01:27]} 20. Ng4 {[%emt 0:01:16]} g5 {[%emt 0:00:35]} 21. Bg3 {[%emt 0:00:01]} cxb4 {[%emt 0:00:36]} 22. cxb4 {[%emt 0:00:01]} Kf8 {[%emt 0:01:14]} 23. Rad1 {[%emt 0:01:32]} Rac8 {[%emt 0:00:26]} 24. Qa2 {[%emt 0:00:02]} Neg6 {[%emt 0:00:05]} 25. axb5 {[%emt 0:02:03]} axb5 {[%emt 0:00:04]} 26. Qd2 {[%emt 0:00:23]} d5 {[%emt 0:00:51]} 27. Bxf4 {[%emt 0:01:29]} exf4 {[%emt 0:01:41]} 28. e5 {[%emt 0:02:23]} h5 {[%emt 0:01:11]} 29. Nf6 {[%emt 0:00:01]} Bxf6 {[%emt 0:00:02]} 30. exf6 {[%emt 0:00:01]} Qf5 {[%emt 0:00:08]} 31. Rxe8+ {[%emt 0:01:45]} Rxe8 {[%emt 0:00:03]} 32. Re1 {[%emt 0:00:02]} Rxe1+ {[%emt 0:00:14]} 33. Qxe1 {[%emt 0:00:06]} Qxf6 {[%emt 0:00:35]} 34. Qc1 {[%emt 0:00:00]} g4 {[%emt 0:00:18]} 35. hxg4 {[%emt 0:00:15]} hxg4 {[%emt 0:00:02]} 36. Nh2 {[%emt 0:00:01]} g3 {[%emt 0:01:33]} 37. Nf3 {[%emt 0:01:06]} d4 {[%emt 0:00:01]} 38. Qc5+ {[%emt 0:00:23]} Kg7 {[%emt 0:00:03]} 39. Bd5 {[%emt 0:00:48]} Bxd5 {[%emt 0:01:32]} 40. Qxd5 {[%emt 0:00:00]} Qe7 {[%emt 0:00:43]} 41. Qxd4+ {[%emt 0:00:01]} f6 {[%emt 0:00:02]} 42. Kf1 {[%emt 0:00:15]} Qc7 {[%emt 0:00:07]} 43. Qc5 {[%emt 0:00:09]} Qd7 {[%emt 0:00:01]} 44. Qd4 {[%emt 0:00:12]} Qe6 {[%emt 0:00:19]} 45. Qc5 {[%emt 0:00:51]} Qb3 {[%emt 0:01:19]} 46. fxg3 {[%emt 0:00:16]} Qxd3+ {[%emt 0:00:06]} 47. Kf2 {[%emt 0:00:08]} fxg3+ {[%emt 0:00:19]} 48. Kxg3 {[%emt 0:00:02]} Ne5 {[%emt 0:00:30]} 49. Qe7+ {[%emt 0:00:05]} 1/2-1/2

[Event "FIDE Open World Rapid 2024"]
[Site "New York"]
[Date "2024.12.28"]
[Round "9.23"]
[White "Druska, Juraj"]
[Black "Vokhidov, Shamsiddin"]
[Result "0-1"]
[ECO "B40"]
[WhiteElo "2423"]
[BlackElo "2681"]
[Annotator "ChessBase"]
[PlyCount "66"]
[EventDate "2024.12.14"]
[EventType "swiss"]
[EventCountry "USA"]
[SourceTitle "playchess.com"]
[Source "ChessBase"]
[SourceQuality "1"]
[TimeControl "900+10"]

1. e4 {[%emt 0:00:03]} c5 {[%emt 0:00:01]} 2. Nf3 {[%emt 0:00:02]} e6 {[%emt 0:00:01]} 3. d4 {[%emt 0:00:11]} cxd4 {[%emt 0:00:01]} 4. Qxd4 {[%emt 0:00:02]} Nc6 {[%emt 0:00:03]} 5. Qe3 {[%emt 0:00:03]} Nf6 {[%emt 0:00:08]} 6. Nc3 {[%emt 0:00:03]} Qc7 {[%emt 0:00:13]} 7. Bd3 {[%emt 0:00:54]} a6 {[%emt 0:00:21]} 8. O-O {[%emt 0:00:20]} Be7 {[%emt 0:00:02]} 9. h3 {[%emt 0:01:45]} d6 {[%emt 0:00:06]} 10. Na4 {[%emt 0:00:36]} Nd7 {[%emt 0:00:17]} 11. c4 {[%emt 0:00:09]} O-O {[%emt 0:00:16]} 12. Bd2 {[%emt 0:01:54]} b6 {[%emt 0:00:06]} 13. Rac1 {[%emt 0:00:30]} Bb7 {[%emt 0:00:09]} 14. Rfd1 {[%emt 0:00:41]} Rac8 {[%emt 0:00:07]} 15. b4 {[%emt 0:01:12]} h6 {[%emt 0:00:16]} 16. a3 {[%emt 0:00:08]} Rfd8 {[%emt 0:00:50]} 17. Qe2 {[%emt 0:00:22]} Qb8 {[%emt 0:00:37]} 18. Be3 {[%emt 0:00:08]} Ba8 {[%emt 0:00:02]} 19. Bb1 {[%emt 0:00:34]} Bf6 {[%emt 0:00:21]} 20. Qd2 {[%emt 0:00:23]} b5 {[%emt 0:00:19]} 21. Nb2 {[%emt 0:00:54]} Nde5 {[%emt 0:00:46]} 22. Nh2 {[%emt 0:00:19]} bxc4 {[%emt 0:00:30]} 23. Nxc4 {[%emt 0:00:04]} d5 {[%emt 0:01:11]} 24. exd5 {[%emt 0:01:30]} Rxd5 {[%emt 0:00:34]} 25. Qc2 {[%emt 0:00:18]} Nxc4 {[%emt 0:00:07]} 26. Qh7+ {[%emt 0:01:33]} Kf8 {[%emt 0:00:01]} 27. Rxd5 {[%emt 0:00:03]} Nxe3 {[%emt 0:00:33]} 28. Rd7 {[%emt 0:01:21]} Ne7 {[%emt 0:01:14]} 29. Re1 {[%emt 0:00:01]} Qb5 {[%emt 0:00:52]} 30. Ra7 {[%emt 0:01:02]} N3f5 {[%emt 0:02:19]} 31. Ng4 {[%emt 0:00:35]} Bd4 {[%emt 0:00:02]} 32. Bxf5 {[%emt 0:01:15]} Bxa7 {[%emt 0:01:57]} 33. Bxe6 {[%emt 0:01:21]} Qc6 {[%emt 0:00:48]} 0-1